[Event "IIFL Wealth 4th Mumbai GM"]
[Site "Mumbai"]
[Date "2019.01.02"]
[Round "4"]
[White "Mahindrakar Indrajeet"]
[Black "Srija, Seshadri"]
[Result "0-1"]
[ECO "C60"]
[WhiteElo "2106"]
[BlackElo "2210"]
[Annotator "NA"]
[PlyCount "124"]
[EventDate "2018.12.30"]
[EventType "swiss"]
[EventCountry "IND"]
[SourceTitle "playchess.com"]
[Source "ChessBase"]
[SourceQuality "1"]
[TimeControl "40/5400+30:1800+30"]

1. e4 {[%emt 0:01:06]} e5 {[%emt 0:00:00]} 2. Nf3 {[%emt 0:00:07]} Nc6 {[%emt 0:00:00]} 3. Bb5 {[%emt 0:00:06]} g6 {[%emt 0:00:00]} 4. O-O {[%emt 0:02:53]} Bg7 {[%emt 0:00:35]} 5. c3 {[%emt 0:00:58]} a6 {[%emt 0:00:24]} 6. Ba4 {[%emt 0:01:10]} Nge7 {[%emt 0:01:55]} 7. d4 {[%emt 0:00:55]} exd4 {[%emt 0:00:09]} 8. cxd4 {[%emt 0:00:32]} b5 {[%emt 0:00:12] C60: Ruy Lopez: Unusual Black 3rd moves and 3...g6} 9. Bb3 {[%emt 0:00:51]} d6 {[%emt 0:00:21]} (9... O-O 10. Nc3 d6 11. h3 Na5 12. Bc2 c5 13. dxc5 dxc5 14. Qxd8 Rxd8 {0-1 (65) Vachier Lagrave,M (2789)-Mamedyarov,S (2808) Leuven 2018}) 10. h3 {[%emt 0:04:26]} O-O {[%emt 0:00:25]} 11. Re1 {[%emt 0:01:44]} Na5 {[%emt 0:02:05]} 12. Bc2 {[%emt 0:00:40]} c5 {[%emt 0:01:01]} 13. Nc3 {[%emt 0:05:06]} Bb7 {[%emt 0:06:41]} 14. Bg5 {[%emt 0:13:57]} h6 {[%emt 0:05:32]} 15. Bf4 {[%emt 0:11:59]} Rc8 {[%emt 0:11:44]} 16. dxc5 $146 {[%emt 0:04:31]} ({Predecessor:} 16. Qd3 Nec6 17. d5 {0-1 (33) Dmochowska,A (1913)-Bartos,J (2159) Marianske Lazne 2015}) 16... dxc5 {[%emt 0:00:12]} 17. Qc1 {[%emt 0:00:48]} g5 {[%emt 0:02:07]} 18. Be5 {[%emt 0:05:15]} f6 {[%emt 0:09:24]} 19. Bh2 {[%emt 0:01:21]} Nc4 {[%emt 0:07:15]} 20. Bb3 {[%emt 0:03:19]} f5 {[%emt 0:18:50]} 21. Be5 {[%emt 0:08:19]} g4 {[%emt 0:04:33]} 22. Bxc4+ {[%emt 0:14:32]} bxc4 {[%emt 0:00:02]} 23. Bxg7 {[%emt 0:02:48]} Kxg7 {[%emt 0:00:07]} 24. hxg4 {[%emt 0:03:30]} fxg4 {[%emt 0:00:08]} 25. Nh4 {[%emt 0:00:27]} Qd4 {[%emt 0:04:31]} 26. Qe3 {[%emt 0:03:09]} Qxe3 {[%emt 0:08:26]} 27. Rxe3 {[%emt 0:00:09]} Rcd8 {[%emt 0:00:09]} 28. Rae1 {[%emt 0:03:33]} Bc6 {[%emt 0:03:02]} 29. Rg3 {[%emt 0:01:01]} h5 {[%emt 0:00:14]} 30. f3 {[%emt 0:02:31]} Rd3 {[%emt 0:00:17]} 31. Kh2 {[%emt 0:00:15]} Bd7 {[%emt 0:00:48]} 32. fxg4 {[%emt 0:02:05]} hxg4 {[%emt 0:00:34]} 33. Rxd3 {[%emt 0:00:22]} cxd3 {[%emt 0:00:08]} 34. Kg3 {[%emt 0:00:06]} Nc6 {[%emt 0:02:40]} 35. b3 {[%emt 0:01:07]} Ne5 {[%emt 0:01:04]} 36. Rd1 {[%emt 0:00:39]} Kh6 {[%emt 0:01:08]} 37. Nd5 {[%emt 0:00:51]} Kg5 {[%emt 0:01:10]} 38. Nc3 {[%emt 0:00:56]} Rh8 {[%emt 0:01:28]} 39. Nf5 {[%emt 0:00:31]} Bxf5 {[%emt 0:00:12]} 40. exf5 {[%emt 0:00:00]} Kxf5 {[%emt 0:00:00]} 41. Rf1+ {[%emt 0:08:47]} Ke6 {[%emt 0:01:28]} 42. Re1 {[%emt 0:01:44]} Rd8 {[%emt 0:06:38]} (42... Rf8 $17 43. Rh1 d2 44. Rh6+ Kd7) 43. Kf4 $1 {[%emt 0:03:50]} Rf8+ {[%emt 0:01:49]} 44. Kg3 $2 {[%emt 0:01:17]} (44. Ke3 $11) 44... Rf5 $17 {[%emt 0:04:13]} (44... Kd6 $19 {is more deadly.} 45. Re4 Rf1) 45. Rh1 {[%emt 0:01:27]} Kd7 {[%emt 0:10:51]} 46. Rh7+ {[%emt 0:01:46]} Ke6 {[%emt 0:05:57]} 47. Rh6+ {[%emt 0:03:06]} Kf7 {[%emt 0:01:33]} 48. Rxa6 {[%emt 0:01:47]} Rf1 {[%emt 0:00:09]} 49. Ne4 {[%emt 0:02:20]} Re1 {[%emt 0:03:56]} 50. Kf4 {[%emt 0:01:41]} Ng6+ {[%emt 0:00:11]} 51. Kf5 {[%emt 0:02:02]} Nh4+ {[%emt 0:00:13]} 52. Kf4 {[%emt 0:02:42]} Nxg2+ {[%emt 0:00:09]} 53. Kf5 {[%emt 0:00:27]} Nh4+ {[%emt 0:00:13]} 54. Kf4 {[%emt 0:00:51]} Ng6+ {[%emt 0:00:51]} 55. Kf5 {[%emt 0:00:21]} Ne7+ {[%emt 0:00:17]} 56. Kf4 {[%emt 0:01:20]} g3 {[%emt 0:01:29]} 57. Ng5+ {[%emt 0:01:37]} Kg7 {[%emt 0:02:53]} 58. Rd6 {[%emt 0:01:20]} g2 {[%emt 0:01:09]} 59. Nh3 {[%emt 0:01:42]} Rh1 {[%emt 0:00:18]} 60. Kg3 {[%emt 0:00:19]} Nf5+ {[%emt 0:00:59]} 61. Kxg2 {[%emt 0:00:20]} Nxd6 {[%emt 0:00:26]} 62. Kxh1 {[%emt 0:00:16]} Ne4 {[%emt 0:00:05]} 0-1

[Event "IIFL Wealth 4th Mumbai GM"]
[Site "Mumbai"]
[Date "2019.01.02"]
[Round "4"]
[White "Kavinda, Akila"]
[Black "Banerjee, Sushant"]
[Result "1/2-1/2"]
[ECO "A43"]
[WhiteElo "2092"]
[BlackElo "2198"]
[Annotator "NA"]
[PlyCount "103"]
[EventDate "2018.12.30"]
[EventType "swiss"]
[EventCountry "IND"]
[SourceTitle "playchess.com"]
[Source "ChessBase"]
[SourceQuality "1"]
[TimeControl "40/5400+30:1800+30"]

1. d4 {[%emt 0:00:00]} Nf6 {[%emt 0:00:00]} 2. Nf3 {[%emt 0:00:00]} c5 {[%emt 0:00:00]} 3. d5 {[%emt 0:02:28]} e6 {[%emt 0:00:04]} 4. Nc3 {[%emt 0:00:11]} exd5 {[%emt 0:02:23]} 5. Nxd5 {[%emt 0:00:05]} Nxd5 {[%emt 0:00:54]} 6. Qxd5 {[%emt 0:00:05]} Nc6 {[%emt 0:00:03]} 7. Bg5 {[%emt 0:22:14]} Be7 {[%emt 0:00:17] A43: Schmid Benoni} 8. c3 {[%emt 0:10:24]} (8. a3 Qa5+ 9. Bd2 Qb6 10. Bc3 d6 11. Ng5 Nd8 12. O-O-O Ne6 13. Ne4 O-O 14. e3 Nc7 15. Qh5 {1-0 (39) Svane,R (2587)-Nikolovski,N (2412) Tarvisio 2017}) 8... d6 {[%emt 0:05:41] LiveBook: 6 Games} 9. Bxe7 {[%emt 0:23:09]} Nxe7 $146 {[%emt 0:02:16]} ({Predecessor:} 9... Qxe7 10. g3 Be6 11. Qd2 d5 12. Bg2 Rd8 13. O-O O-O 14. Rfe1 Bf5 15. Rad1 {½-½ (31) Siebrecht,S (2394)-Gubajdullin,A (2413) Moscow 2006}) 10. Qg5 {[%emt 0:03:00]} Qb6 {[%emt 0:06:26]} 11. Qd2 {[%emt 0:08:09]} Bf5 {[%emt 0:06:35]} 12. g3 {[%emt 0:00:32]} O-O {[%emt 0:02:38]} 13. Bg2 {[%emt 0:00:14]} d5 {[%emt 0:01:43]} 14. O-O {[%emt 0:01:10]} Rad8 {[%emt 0:01:04]} 15. Rfd1 {[%emt 0:04:54]} Rfe8 {[%emt 0:02:55]} 16. Ne5 {[%emt 0:06:06]} Qf6 {[%emt 0:18:38]} 17. Nd3 {[%emt 0:00:22]} b6 {[%emt 0:00:59]} 18. Nf4 {[%emt 0:01:41]} d4 {[%emt 0:02:45]} 19. e4 {[%emt 0:03:12]} Bg4 {[%emt 0:03:28]} 20. f3 {[%emt 0:00:13]} Bc8 {[%emt 0:01:49]} 21. c4 {[%emt 0:00:39]} Qd6 {[%emt 0:03:50]} 22. Nd3 {[%emt 0:00:49]} f5 {[%emt 0:05:08]} 23. e5 {[%emt 0:00:41]} Qe6 {[%emt 0:00:11]} 24. b3 {[%emt 0:02:10]} f4 {[%emt 0:01:10]} 25. Qxf4 {[%emt 0:01:46]} Ng6 {[%emt 0:06:06]} 26. Qg5 {[%emt 0:00:28]} Nxe5 {[%emt 0:02:09]} 27. Re1 {[%emt 0:00:51]} Nf7 {[%emt 0:00:09]} 28. Qd2 {[%emt 0:06:24]} Qd7 {[%emt 0:02:10]} 29. Rxe8+ {[%emt 0:00:10]} Rxe8 {[%emt 0:00:06]} 30. Re1 {[%emt 0:00:05]} Bb7 {[%emt 0:02:56]} 31. Bh3 {[%emt 0:02:19]} Qd8 32. Be6 {[%emt 0:00:38]} Rxe6 {[%emt 0:01:08]} 33. Rxe6 {[%emt 0:00:04]} Ng5 {[%emt 0:00:06]} 34. Qe2 {[%emt 0:01:08]} Kf8 {[%emt 0:04:15]} 35. f4 {[%emt 0:00:24]} Nxe6 {[%emt 0:02:44]} 36. Qxe6 {[%emt 0:00:03]} Qf6 {[%emt 0:00:22]} 37. Qxf6+ {[%emt 0:00:59]} gxf6 {[%emt 0:00:05]} 38. Kf2 {[%emt 0:00:31]} Be4 {[%emt 0:00:28]} 39. Nc1 {[%emt 0:00:30]} f5 {[%emt 0:05:10]} 40. Ke2 {[%emt 0:00:00]} Ke7 {[%emt 0:00:00]} 41. Kd2 {[%emt 0:07:41]} Kd6 {[%emt 0:03:48]} 42. Ne2 {[%emt 0:03:50] [#]} Kc6 $1 {[%emt 0:02:45]} 43. a4 {[%emt 0:01:07]} Kd6 {[%emt 0:02:49]} 44. Ng1 $17 {[%emt 0:00:45] [#]} Ke6 {[%emt 0:02:20]} ({Black should try} 44... Bg2 $1 $17) 45. Nh3 {[%emt 0:01:29]} h6 {[%emt 0:01:11]} 46. Nf2 {[%emt 0:00:06]} h5 {[%emt 0:03:02]} 47. h4 {[%emt 0:00:08]} a6 {[%emt 0:02:19]} 48. Nd3 {[%emt 0:05:45]} Bxd3 {[%emt 0:04:16]} 49. Kxd3 {[%emt 0:00:05]} Kd6 {[%emt 0:00:07]} 50. Kd2 {[%emt 0:00:19]} Kc6 {[%emt 0:01:10]} 51. Kd3 {[%emt 0:00:12]} b5 {[%emt 0:02:32]} 52. a5 1/2-1/2

[Event "IIFL Wealth 4th Mumbai GM"]
[Site "Mumbai"]
[Date "2019.01.02"]
[Round "4"]
[White "Thapa, Krishna"]
[Black "Ghelani Dhairya"]
[Result "1-0"]
[ECO "E15"]
[WhiteElo "2024"]
[BlackElo "2146"]
[Annotator "NA"]
[PlyCount "85"]
[EventDate "2018.12.30"]
[EventType "swiss"]
[EventCountry "IND"]
[SourceTitle "playchess.com"]
[Source "ChessBase"]
[SourceQuality "1"]
[TimeControl "40/5400+30:1800+30"]

1. d4 {[%emt 0:01:41]} Nf6 {[%emt 0:00:00]} 2. Nf3 {[%emt 0:00:02]} e6 {[%emt 0:00:00]} 3. c4 {[%emt 0:00:03]} b6 {[%emt 0:00:00]} 4. g3 {[%emt 0:00:03]} Ba6 {[%emt 0:00:00]} 5. b3 {[%emt 0:00:29]} Bb4+ {[%emt 0:00:03]} 6. Bd2 {[%emt 0:00:06]} Be7 {[%emt 0:00:04]} 7. Bg2 {[%emt 0:00:03]} c6 {[%emt 0:00:04]} 8. O-O {[%emt 0:00:14]} d5 {[%emt 0:00:17]} 9. Qc2 {[%emt 0:00:19]} O-O {[%emt 0:00:47]} 10. Rd1 {[%emt 0:02:30]} Nbd7 {[%emt 0:04:06]} 11. Bc1 {[%emt 0:00:53]} Rc8 {[%emt 0:00:42]} 12. Bb2 {[%emt 0:00:23]} Qe8 {[%emt 0:08:26]} 13. Ne5 {[%emt 0:06:35]} c5 {[%emt 0:07:27]} 14. Nxd7 {[%emt 0:23:33]} Qxd7 {[%emt 0:01:50]} 15. dxc5 {[%emt 0:00:57]} Rxc5 {[%emt 0:00:38]} 16. e4 {[%emt 0:01:38]} Qc8 {[%emt 0:03:23]} 17. e5 {[%emt 0:11:45]} Ne8 {[%emt 0:02:46]} 18. Ba3 {[%emt 0:03:36]} Rc7 {[%emt 0:00:01]} 19. Bxe7 {[%emt 0:00:06]} Rxe7 {[%emt 0:00:01]} 20. Nd2 {[%emt 0:00:15]} dxc4 {[%emt 0:01:21]} 21. bxc4 {[%emt 0:00:08]} f6 {[%emt 0:03:24]} 22. Qe4 {[%emt 0:04:58]} fxe5 {[%emt 0:02:27]} 23. Qxe5 Rf5 {[%emt 0:01:00]} 24. Qe3 {[%emt 0:02:02]} Nf6 {[%emt 0:10:28]} 25. h3 {[%emt 0:04:41]} Rc5 {[%emt 0:03:13]} 26. Bf1 {[%emt 0:11:24]} Bb7 {[%emt 0:06:56]} 27. Be2 {[%emt 0:05:00]} Qc7 {[%emt 0:04:40]} 28. Nf3 {[%emt 0:03:01]} Ne4 {[%emt 0:02:12]} 29. Kh2 {[%emt 0:05:15]} e5 {[%emt 0:14:54]} 30. Nh4 {[%emt 0:05:25]} Rf7 {[%emt 0:01:48]} 31. f3 {[%emt 0:01:21]} Nd6 {[%emt 0:00:15]} 32. Rac1 {[%emt 0:01:16]} Ba6 {[%emt 0:03:35]} 33. Rd5 {[%emt 0:02:19]} Rc6 {[%emt 0:06:38]} 34. c5 {[%emt 0:01:33]} bxc5 {[%emt 0:00:42]} 35. Bxa6 {[%emt 0:00:58]} Rxa6 {[%emt 0:00:01]} 36. Rcxc5 {[%emt 0:01:10]} Rxa2+ {[%emt 0:00:10]} 37. Ng2 {[%emt 0:00:02]} Qe7 {[%emt 0:01:33]} 38. Qb3 {[%emt 0:00:26]} Rf2 {[%emt 0:00:43]} 39. Rxd6 {[%emt 0:00:38]} Qxd6 {[%emt 0:00:12]} 40. Rc8+ {[%emt 0:00:00]} Qf8 {[%emt 0:00:00]} 41. Rxf8+ {[%emt 0:00:12]} Kxf8 {[%emt 0:00:07]} 42. Qb8+ {[%emt 0:00:16]} Ke7 {[%emt 0:00:01]} 43. Qxa7+ {[%emt 0:00:01]} 1-0

[Event "IIFL Wealth 4th Mumbai GM"]
[Site "Mumbai"]
[Date "2019.01.02"]
[Round "4"]
[White "Nepal, Prakash"]
[Black "Tarun Kanyamarala"]
[Result "0-1"]
[ECO "D31"]
[WhiteElo "1902"]
[BlackElo "2120"]
[Annotator "NA"]
[PlyCount "60"]
[EventDate "2018.12.30"]
[EventType "swiss"]
[EventCountry "IND"]
[SourceTitle "playchess.com"]
[Source "ChessBase"]
[SourceQuality "1"]
[TimeControl "40/5400+30:1800+30"]

1. d4 {[%emt 0:01:12]} d5 {[%emt 0:00:00]} 2. c4 {[%emt 0:00:11]} e6 {[%emt 0:00:02]} 3. Nc3 {[%emt 0:00:09]} Bb4 {[%emt 0:00:12]} 4. cxd5 {[%emt 0:05:21]} exd5 {[%emt 0:00:10]} 5. Bf4 {[%emt 0:00:47]} Ne7 {[%emt 0:02:15]} 6. Bg5 {[%emt 0:02:04]} f6 {[%emt 0:15:05]} 7. Bf4 {[%emt 0:05:22]} O-O {[%emt 0:06:21]} 8. Qb3 {[%emt 0:01:41]} Nbc6 {[%emt 0:09:22]} 9. e3 {[%emt 0:05:46]} Re8 {[%emt 0:07:09]} 10. Bd3 {[%emt 0:13:40]} Bf5 {[%emt 0:03:37]} 11. Bxf5 {[%emt 0:11:53]} Nxf5 {[%emt 0:00:05]} 12. Kf1 {[%emt 0:00:23]} Bxc3 {[%emt 0:04:02]} 13. Qxc3 {[%emt 0:00:18]} g5 {[%emt 0:04:09]} 14. Bg3 {[%emt 0:05:37]} h5 {[%emt 0:00:23]} 15. Qd3 {[%emt 0:08:56]} Qd7 {[%emt 0:02:31]} 16. Ne2 {[%emt 0:06:59]} h4 {[%emt 0:01:37]} 17. Bxc7 {[%emt 0:00:17]} Rac8 {[%emt 0:01:04]} 18. Bf4 {[%emt 0:09:12]} gxf4 {[%emt 0:01:37]} 19. Nxf4 {[%emt 0:00:05]} Re4 {[%emt 0:04:33]} 20. g3 {[%emt 0:01:15]} h3 {[%emt 0:04:52]} 21. Qd1 {[%emt 0:05:09]} Ng7 {[%emt 0:01:26]} 22. Qd3 {[%emt 0:04:20]} Nb4 {[%emt 0:15:23]} 23. Qb3 {[%emt 0:00:51]} Qb5+ {[%emt 0:00:36]} 24. Kg1 {[%emt 0:00:25]} Rc2 {[%emt 0:01:36]} 25. Nxh3 {[%emt 0:06:21]} Qc4 {[%emt 0:01:06]} 26. Qa4 {[%emt 0:01:34]} Nc6 {[%emt 0:03:05]} 27. Qa3 {[%emt 0:01:50]} Nf5 {[%emt 0:00:40]} 28. Rd1 {[%emt 0:01:42]} Nxe3 {[%emt 0:01:20]} 29. b3 {[%emt 0:00:35]} Qe2 {[%emt 0:00:32]} 30. Rc1 {[%emt 0:00:19]} Qf3 {[%emt 0:00:26]} 0-1

[Event "IIFL Wealth 4th Mumbai GM"]
[Site "Mumbai"]
[Date "2019.01.02"]
[Round "4"]
[White "Larmet, Nino"]
[Black "Laoussing, Mathis"]
[Result "1/2-1/2"]
[ECO "B01"]
[WhiteElo "1835"]
[BlackElo "1438"]
[Annotator "NA"]
[PlyCount "133"]
[EventDate "2018.12.30"]
[EventType "swiss"]
[EventCountry "IND"]
[SourceTitle "playchess.com"]
[Source "ChessBase"]
[SourceQuality "1"]
[TimeControl "40/5400+30:1800+30"]

1. e4 {[%emt 0:00:33]} d5 {[%emt 0:00:00]} 2. exd5 {[%emt 0:01:01]} Nf6 {[%emt 0:00:02]} 3. Nf3 {[%emt 0:00:05]} Nxd5 {[%emt 0:01:34]} 4. d4 {[%emt 0:00:30]} Bf5 {[%emt 0:00:29]} 5. Bd3 {[%emt 0:00:11]} Bxd3 {[%emt 0:00:52]} 6. Qxd3 {[%emt 0:00:03]} Nc6 {[%emt 0:02:18]} 7. c4 {[%emt 0:00:24]} Ndb4 {[%emt 0:00:20]} 8. Qc3 {[%emt 0:04:05]} e6 {[%emt 0:03:30]} 9. O-O {[%emt 0:04:51]} Be7 {[%emt 0:04:03]} 10. a3 {[%emt 0:00:58]} Na6 {[%emt 0:00:09]} 11. Be3 {[%emt 0:19:59]} Bf6 {[%emt 0:05:34]} 12. Nbd2 {[%emt 0:05:13]} Ne7 {[%emt 0:04:39]} 13. Ne4 {[%emt 0:01:02]} Nf5 {[%emt 0:00:15]} 14. b4 {[%emt 0:04:38]} c6 {[%emt 0:03:02]} 15. Rad1 {[%emt 0:04:36]} O-O {[%emt 0:02:00]} 16. g4 {[%emt 0:05:46]} Nh4 {[%emt 0:03:08]} 17. Nxh4 {[%emt 0:02:21]} Bxh4 {[%emt 0:00:08]} 18. Ng3 {[%emt 0:07:23]} f5 {[%emt 0:01:12]} 19. gxf5 {[%emt 0:01:09]} exf5 {[%emt 0:00:09]} 20. Qc2 {[%emt 0:04:45]} Qf6 {[%emt 0:05:19]} 21. Rde1 {[%emt 0:02:51]} Rae8 {[%emt 0:01:06]} 22. f4 {[%emt 0:00:30]} Re6 {[%emt 0:00:30]} 23. Bf2 {[%emt 0:02:26]} Bxg3 {[%emt 0:01:03]} 24. hxg3 {[%emt 0:00:09]} Rfe8 {[%emt 0:00:10]} 25. Re5 {[%emt 0:00:54]} g6 {[%emt 0:01:44]} 26. Rfe1 {[%emt 0:00:28]} Nc7 {[%emt 0:00:20]} 27. Be3 {[%emt 0:05:57]} R8e7 {[%emt 0:00:43]} 28. Bc1 {[%emt 0:00:33]} Ne8 {[%emt 0:00:19]} 29. Bb2 {[%emt 0:01:56]} Rxe5 {[%emt 0:04:08]} 30. dxe5 {[%emt 0:02:02]} Qe6 {[%emt 0:00:34]} 31. Rd1 {[%emt 0:01:44]} Rd7 {[%emt 0:00:49]} 32. Rd3 {[%emt 0:00:51]} Ng7 {[%emt 0:00:32]} 33. Qd2 {[%emt 0:00:57]} Rxd3 {[%emt 0:01:18]} 34. Qxd3 {[%emt 0:00:01]} Nh5 {[%emt 0:00:22]} 35. Kf2 {[%emt 0:02:46]} Kf7 {[%emt 0:00:07]} 36. Bd4 {[%emt 0:01:02]} a6 {[%emt 0:00:40]} 37. Bc5 {[%emt 0:02:41]} Ke8 {[%emt 0:01:18]} 38. Kf3 {[%emt 0:04:51]} Qd7 {[%emt 0:00:38]} 39. Qxd7+ {[%emt 0:00:41]} Kxd7 {[%emt 0:00:08]} 40. g4 {[%emt 0:00:00]} Ng7 {[%emt 0:00:00]} 41. g5 {[%emt 0:09:13]} Ne6 {[%emt 0:02:14]} 42. Be3 {[%emt 0:01:10]} Kc7 {[%emt 0:01:46]} 43. Ke2 {[%emt 0:08:30]} b6 {[%emt 0:01:11]} 44. Kd3 {[%emt 0:01:07]} c5 {[%emt 0:01:08]} 45. Kc3 {[%emt 0:02:28]} Kc6 {[%emt 0:00:19]} 46. Kb3 {[%emt 0:01:04]} Nc7 {[%emt 0:03:22]} 47. Ka4 {[%emt 0:01:51]} b5+ {[%emt 0:01:40]} 48. Kb3 {[%emt 0:00:37]} bxc4+ {[%emt 0:00:13]} 49. Kxc4 {[%emt 0:00:08]} cxb4 {[%emt 0:00:17]} 50. axb4 {[%emt 0:00:23]} Ne6 {[%emt 0:00:17]} 51. Bd2 {[%emt 0:01:17]} Nc7 {[%emt 0:00:45]} 52. Kc3 {[%emt 0:02:47]} Kd5 {[%emt 0:00:53]} 53. Kb3 {[%emt 0:01:38]} Kd4 {[%emt 0:00:18]} 54. Ka4 {[%emt 0:00:42]} Kd5 {[%emt 0:03:19]} 55. Ka5 {[%emt 0:00:43]} Kc6 {[%emt 0:00:20]} 56. e6 {[%emt 0:04:44]} Nxe6 {[%emt 0:00:30]} 57. Kxa6 {[%emt 0:00:02]} Nc7+ {[%emt 0:01:00]} 58. Ka5 {[%emt 0:00:00]} Nd5 {[%emt 0:01:14]} 59. b5+ {[%emt 0:00:45]} Kb7 {[%emt 0:01:54]} 60. Ka4 {[%emt 0:01:27]} Kb6 {[%emt 0:00:31]} 61. Ba5+ {[%emt 0:00:48]} Kc5 {[%emt 0:00:30]} 62. Bd2 {[%emt 0:00:30]} Nb6+ 63. Ka5 Nc4+ 64. Ka6 Nxd2 65. b6 Nc4 66. b7 Nd2 67. Ka5 1/2-1/2

[Event "IIFL Wealth 4th Mumbai GM"]
[Site "Mumbai"]
[Date "2019.01.02"]
[Round "4"]
[White "Kishor, Shazzad"]
[Black "Soham Datar"]
[Result "0-1"]
[ECO "D10"]
[WhiteElo "1730"]
[BlackElo "2134"]
[Annotator "NA"]
[PlyCount "164"]
[EventDate "2018.12.30"]
[EventType "swiss"]
[EventCountry "IND"]
[SourceTitle "playchess.com"]
[Source "ChessBase"]
[SourceQuality "1"]
[TimeControl "40/5400+30:1800+30"]

1. d4 d5 2. Nf3 Nf6 3. c4 c6 4. cxd5 cxd5 5. e3 Nc6 6. Nc3 a6 7. a3 Bf5 8. Bd3 Bxd3 9. Qxd3 e6 10. O-O Bd6 11. b4 O-O 12. Bb2 b5 13. Rac1 Ne7 14. e4 dxe4 15. Nxe4 Nxe4 16. Qxe4 Nd5 17. Ne5 Bxe5 18. dxe5 Qd7 19. Bd4 a5 20. Bc5 Rfc8 21. bxa5 Rxa5 22. Bb4 Raa8 23. Rfd1 h6 24. h3 Rc6 25. Qd4 Rac8 26. Rc5 Rxc5 27. Bxc5 Qc7 28. Bd6 Qc2 29. Qd3 Qa4 30. Rb1 Nc3 31. Rb2 Rc4 32. Rb4 Rxb4 33. Bxb4 Nd5 34. Qd4 Qc2 35. Bd6 Nc3 36. Qe3 Ne2+ 37. Kh2 Qd1 38. f3 Qe1 39. Bb4 Qg3+ 40. Kh1 Nf4 41. Qd2 Qg5 42. Kh2 Qf5 43. Bd6 Nd5 44. Qe2 Qf4+ 45. g3 Qa4 46. f4 Qb3 47. h4 Nc3 48. Qg2 Qd1 49. Bb4 Nd5 50. Bd6 Qd3 51. Qf2 Ne3 52. Qf3 Qc2+ 53. Kh3 Nd5 54. g4 g6 55. h5 g5 56. fxg5 hxg5 57. Kg3 Qc1 58. Bb4 Qg1+ 59. Qg2 Qe3+ 60. Qf3 Qxe5+ 61. Kg2 Nxb4 62. axb4 Qb2+ 63. Kg3 Qxb4 64. Qa8+ Kh7 65. Qb7 Qf4+ 66. Kh3 b4 67. Qb5 Qf3+ 68. Kh2 Qxg4 69. Qb7 Qxh5+ 70. Kg2 Qg4+ 71. Kh1 Qd1+ 72. Kh2 Qd2+ 73. Kg1 Qf4 74. Qh1+ Kg7 75. Qb7 g4 76. Qb5 g3 77. Kh1 Qh4+ 78. Kg2 Qh2+ 79. Kf3 Qf2+ 80. Kg4 f5+ 81. Kg5 Qd2+ 82. Kh4 Qh2+ 0-1

[Event "IIFL Wealth 4th Mumbai GM"]
[Site "Mumbai"]
[Date "2019.01.02"]
[Round "4"]
[White "Shah, Ram Surat Prasad"]
[Black "Rebut, Paul"]
[Result "0-1"]
[ECO "B50"]
[WhiteElo "1639"]
[BlackElo "1740"]
[Annotator "NA"]
[PlyCount "104"]
[EventDate "2018.12.30"]
[EventType "swiss"]
[EventCountry "IND"]
[SourceTitle "playchess.com"]
[Source "ChessBase"]
[SourceQuality "1"]
[TimeControl "40/5400+30:1800+30"]

1. e4 {[%emt 0:03:05]} c5 {[%emt 0:00:00]} 2. Nf3 {[%emt 0:00:10]} d6 {[%emt 0:00:02]} 3. Bc4 {[%emt 0:00:30]} a6 {[%emt 0:01:55]} 4. c3 {[%emt 0:00:27]} e6 {[%emt 0:04:35]} 5. O-O {[%emt 0:01:22]} b5 {[%emt 0:00:35]} 6. Bb3 {[%emt 0:00:18]} Bb7 {[%emt 0:01:13]} 7. Re1 {[%emt 0:00:32]} Be7 {[%emt 0:02:11]} 8. d4 {[%emt 0:00:27]} cxd4 {[%emt 0:04:19]} 9. cxd4 {[%emt 0:00:37]} Nf6 {[%emt 0:00:39]} 10. Bc2 {[%emt 0:01:27]} O-O {[%emt 0:01:19]} 11. Nbd2 {[%emt 0:03:35]} Nbd7 {[%emt 0:06:11]} 12. Nf1 {[%emt 0:06:36]} Nb6 {[%emt 0:06:31]} 13. Ng3 {[%emt 0:01:22]} Re8 {[%emt 0:06:28]} 14. h3 {[%emt 0:03:23]} Bf8 {[%emt 0:07:16]} 15. Bg5 {[%emt 0:02:03]} h6 {[%emt 0:03:09]} 16. Be3 {[%emt 0:03:54]} g6 {[%emt 0:03:51]} 17. Nh2 {[%emt 0:03:51]} Nc4 {[%emt 0:03:56]} 18. Bc1 {[%emt 0:01:07]} Bg7 {[%emt 0:01:29]} 19. b3 {[%emt 0:00:34]} Nb6 {[%emt 0:00:24]} 20. Be3 {[%emt 0:00:43]} Rc8 {[%emt 0:01:03]} 21. Rc1 {[%emt 0:02:18]} Nbd7 {[%emt 0:05:27]} 22. Qd2 {[%emt 0:05:29]} Kh7 {[%emt 0:02:32]} 23. Bd3 {[%emt 0:00:31]} Qe7 {[%emt 0:04:23]} 24. Rxc8 {[%emt 0:00:52]} Rxc8 {[%emt 0:00:15]} 25. Rc1 {[%emt 0:00:14]} Qe8 {[%emt 0:01:23]} 26. Rxc8 {[%emt 0:02:25]} Qxc8 {[%emt 0:00:08]} 27. Qc2 {[%emt 0:00:37]} Qxc2 {[%emt 0:00:27]} 28. Bxc2 {[%emt 0:00:05]} h5 {[%emt 0:00:37]} 29. f3 {[%emt 0:00:25]} Kg8 {[%emt 0:09:20]} 30. Nhf1 {[%emt 0:01:00]} Kf8 {[%emt 0:00:46]} 31. Nd2 {[%emt 0:00:47]} Ng8 {[%emt 0:02:34]} 32. Ne2 {[%emt 0:01:50]} Ne7 {[%emt 0:00:48]} 33. Kf2 {[%emt 0:03:10]} Nb8 {[%emt 0:04:16]} 34. Nf1 {[%emt 0:03:21]} Nbc6 {[%emt 0:00:19]} 35. Nh2 {[%emt 0:00:37]} d5 {[%emt 0:04:23]} 36. Bb1 {[%emt 0:06:57]} a5 {[%emt 0:06:58]} 37. Nf1 {[%emt 0:04:15]} a4 {[%emt 0:00:59]} 38. Ke1 {[%emt 0:02:17]} axb3 {[%emt 0:00:21]} 39. axb3 {[%emt 0:00:49]} b4 {[%emt 0:00:43]} 40. Bd3 {[%emt 0:00:00]} Na5 {[%emt 0:00:00]} 41. Nd2 {[%emt 0:01:08]} dxe4 {[%emt 0:04:25]} 42. fxe4 {[%emt 0:02:57]} f5 {[%emt 0:00:37]} 43. Nf4 {[%emt 0:03:30]} Kf7 {[%emt 0:02:06]} 44. exf5 {[%emt 0:03:04]} Nxf5 {[%emt 0:02:01]} 45. Bxf5 {[%emt 0:02:49]} exf5 {[%emt 0:00:30]} 46. Kf2 {[%emt 0:00:35]} Bh6 {[%emt 0:03:05]} 47. g3 {[%emt 0:02:51]} g5 {[%emt 0:15:47]} 48. Nc4 {[%emt 0:06:24]} Nxc4 {[%emt 0:02:52]} 49. bxc4 {[%emt 0:00:15]} gxf4 {[%emt 0:00:07]} 50. gxf4 {[%emt 0:00:10]} b3 {[%emt 0:00:08]} 51. Bc1 {[%emt 0:00:42]} Bxf4 {[%emt 0:00:07]} 52. Bb2 {[%emt 0:00:18]} h4 {[%emt 0:00:39]} 0-1